Cogmind - Beta 14 @@@ ROGUE MODE // 2024.08.08 @ 21:22:42 Player: Sionnis Result: Destroyed by 94-B0V(R) with Subdweller Laser Performance ------------- Evolutions (0) 0 Regions Visited (2) 400 Robots Destroyed (24) 120 Value Destroyed (556) 556 Prototype IDs (0) 0 Alien Tech Used (0) 0 Bonus (0) 0 TOTAL SCORE: 1076 Bonus ------- None Cogmind --------- Core Integrity 0/250 Matter 277/300 Energy 250/250 System Corruption 0% Temperature Hot (235) Movement Treading (160) Location -10/Subcaves Parts ------- > --- POWER (1) -------- Ion Engine > --- PROPULSION (2) --- Light Treads Light Treads > --- UTILITY (2) ------ Large Storage Unit Medium Armor Plating > --- WEAPON (2) ------- Subdweller Machine Gun Subdweller Machine Gun > --- INVENTORY (15) --- Light Nuclear Core Light Treads Subdweller Monowheel Flight Unit Flight Unit Medium Storage Unit Structural Scanner Sensor Array ECM Suite Medium Armor Plating Medium Armor Plating Grenade Launcher Makeshift Spear Peak State ------------ > --- POWER ------------ Ion Engine > --- PROPULSION ------- Light Treads Light Treads > --- UTILITY ---------- Large Storage Unit Medium Armor Plating > --- WEAPON ----------- Autogun Autogun > --- INVENTORY -------- Light Ion Engine Light Nuclear Core Compact Wheel Armored Wheel Flight Unit Flight Unit Medium Storage Unit Sensor Array Medium Armor Plating Medium Armor Plating Medium Armor Plating Autogun Autogun [Rating: 12] Favorites ----------- Power Ion Engine Engine Ion Engine Propulsion Light Treads Treads Light Treads Utility Large Storage Unit Device Sensor Array Storage Large Storage Unit Protection Medium Armor Plating Weapon Autogun Energy Gun Subdweller Laser Ballistic Gun Autogun Ballistic Cannon Light Cannon Build | -11 -10 -10 ------- Run | Yrd Mat Sub Slots Evolved . | . . . Power . | . . . Propulsion . | . . . Utility . | . . . Weapon . | . . . Parts Attached 22 | 7 10 5 Power 3 | 1 2 . Engine 3 | 1 2 . Core . | . . . Reactor . | . . . Propulsion 2 | 2 . . Treads 2 | 2 . . Leg . | . . . Wheel . | . . . Hover . | . . . Flight . | . . . Utility 5 | 1 3 1 Device 1 | . 1 . Storage 2 | 1 1 . Processor . | . . . Hackware . | . . . Protection 2 | . 1 1 Artifact . | . . . Weapon 12 | 3 5 4 Energy Gun 4 | 1 1 2 Energy Cannon . | . . . Ballistic Gun 7 | 2 3 2 Ballistic Cannon 1 | . 1 . Launcher . | . . . Special Weapon . | . . . Impact Weapon . | . . . Slashing Weapon . | . . . Piercing Weapon . | . . . Special Melee Weapon . | . . . Unidentified Prototypes . | . . . Parts Lost 1 | . . 1 Power . | . . . Propulsion . | . . . Utility . | . . . Weapon 1 | . . 1 Highest Loss Streak 1 | . . 1 To Critical Strikes . | . . . Average Slot Usage (%) 97 | . 94 100 Engine 14 | . 14 14 Treads 28 | . 28 28 Storage 14 | . 14 14 Protection 11 | . 8 14 Energy Gun 5 | . 3 7 Ballistic Gun 20 | . 20 20 Ballistic Cannon 1 | . 3 . Peak Build Rating 12 | 6 12 12 Average Rating 11 | 4 10 11 On Entrance 6 | . 6 12 Naked Turns . | . . . Heaviest Build 40 | 12 38 40 Greatest Support 40 | 40 40 40 Greatest Overweight (x) . | . . . Average Overweight (x) . | . . . Largest Inventory Capacity 15 | 8 15 15 Average Capacity 13 | 6 12 15 Most Carried 15 | 3 15 15 Average Carried 12 | 1 11 14 Final Capacity 15 | 8 15 15 Final Carried 15 | 3 15 13 Class Distribution -------------------- 100% | Mutant Dominant Class ---------------- Mutant | -10/Materials Mutant | -10/Subcaves Resources | -11 -10 -10 ----------- Run | Yrd Mat Sub Matter Collected 715 | 236 333 146 Remotely . | . . . Salvage Created 782 | . 430 352 Parts 49 | . 30 19 Haulers Intercepted 2 | . 2 . Recyclers Shooed . | . . . Parts Field Recycled . | . . . Retrieved Matter . | . . . Parts Self-Destructed 4 | . . 4 Prevented . | . . . Kills | -11 -10 -10 ------- Run | Yrd Mat Sub Combat Hostiles Destroyed 20 | . 13 7 Guns 18 | . 11 7 Cannons 2 | . 2 . Classes Destroyed 5 | . 4 1 Hauler 2 | . 2 . Watcher 2 | . 2 . Swarmer 9 | . 9 . Grunt 6 | . 4 2 Subdweller 5 | . . 5 Best Kill Streak 4 | . 4 2 Combat Bots Only 4 | . 4 2 Max Kills in Single Turn 2 | . 2 1 Gunslinging 1 | . 1 . Exploded . | . . . Melee . | . . . Uniques/NPCs Destroyed . | . . . Combat | -11 -10 -10 -------- Run | Yrd Mat Sub Hostile Shots Fired 95 | . 57 38 Missed 24 | . 18 6 Damage Taken 1163 | . 318 845 Core 266 | . 60 206 Absorbed by Shields . | . . . Core Remaining (%) 100 | 100 . . Volleys Fired 71 | . 34 37 Largest 2 | . 2 2 Hottest 120 | . 100 120 Shots Fired 142 | . 68 74 Gun 136 | . 62 74 Cannon 6 | . 6 . Launcher . | . . . Special . | . . . Kinetic 109 | . 67 42 Thermal 33 | . 1 32 Explosive . | . . . Electromagnetic . | . . . Robot Hit Streak 27 | . 8 27 Robot Miss Streak 3 | . 3 2 Penetration Max . | . . . Secondary Targets 2 | . 2 . Max Gunslinging Chain 1 | . 1 . Shots Hit Robots 85 | . 38 47 Core Hits 37 | . 23 14 Critical Kills . | . . . Critical Parts Destroyed . | . . . Critical Strikes . | . . . Melee Attacks . | . . . Impact . | . . . Slashing . | . . . Piercing . | . . . Sneak Attacks . | . . . Combat Hostiles . | . . . Follow-up Attacks . | . . . Damage Inflicted 1432 | . 523 909 Guns 1376 | . 467 909 Cannons 56 | . 56 . Explosions . | . . . Melee . | . . . Ramming . | . . . Kinetic 1036 | . 509 527 Thermal 396 | . 14 382 Explosive . | . . . Electromagnetic . | . . . Impact . | . . . Slashing . | . . . Piercing . | . . . Highest Corruption . | . . . Average Corruption . | . . . Corruption Purged . | . . . Corruption Blocked . | . . . Overload Shots . | . . . Overflow Damage . | . . . Projectiles . | . . . Explosions . | . . . Melee . | . . . Knockbacks 1 | . 1 . Impact . | . . . Kinetic 1 | . 1 . Secondary . | . . . Self-Inflicted Damage . | . . . Shots . | . . . Rammed . | . . . Targets Rammed . | . . . Kicked . | . . . Crushed . | . . . Highest Temperature 267 | . 31 267 Average Temperature 23 | . 11 249 Received Heat Transfer 478 | . 33 445 Siege Activations . | . . . Robots Corrupted . | . . . Combat Hostiles . | . . . Parts Fried . | . . . Impact Corruptions . | . . . Robots Melted . | . . . Combat Hostiles . | . . . Parts Melted . | . . . Heat Transferred 487 | . 37 450 Parts Sabotaged . | . . . Parts Stolen . | . . . Parts Stripped . | . . . Power Chain Reactions . | . . . Alert | -11 -10 -10 ------- Run | Yrd Mat Sub Peak Influence 166 | . 166 . Initial . | . . . Average 80 | . 86 . Maximum Alert Level . | . . . Low Security (%) 100 | 100 100 . Level 1 . | . . . Level 2 . | . . . Level 3 . | . . . Level 4 . | . . . Level 5 . | . . . High Security . | . . . Max Security . | . . . Squads Dispatched 2 | . 2 . Investigation 1 | . 1 . Extermination . | . . . Reinforcement 1 | . 1 . Assault . | . . . Garrison . | . . . Intercept . | . . . Searches Triggered . | . . . Construction Impeded . | . . . Haulers Reinforced . | . . . Active Scanning Responses . | . . . Cargo Convoy Interrupts . | . . . Stealth | -11 -10 -10 --------- Run | Yrd Mat Sub Distress Signals 1 | . 1 . Communications Jammed . | . . . Distress Signals . | . . . Times Spotted 26 | . 17 9 Peak Tracking Total 5 | . 5 2 Tactical Retreats 1 | . 1 . Traps | -11 -10 -10 ------- Run | Yrd Mat Sub Traps Triggered 6 | . 1 5 Indirectly . | . . . Trap Hack Attempts . | . . . Triggered . | . . . Disarmed . | . . . Reprogrammed . | . . . Reused . | . . . Traps Extracted . | . . . Installed . | . . . Triggered . | . . . Machines | -11 -10 -10 ---------- Run | Yrd Mat Sub Machines Disabled . | . . . Max in Single Turn . | . . . Machines Repaired . | . . . Machines Dismantled . | . . . Machines Sabotaged . | . . . Overloaded Fab Kills . | . . . Hacking | -11 -10 -10 --------- Run | Yrd Mat Sub Machines Accessed 6 | . 5 1 Terminals 5 | . 5 . Fabricators . | . . . Repair Stations . | . . . Recycling Units . | . . . Scanalyzers . | . . . Garrison Access . | . . . Total Hacks 15 | . 11 4 Successful 14 | . 10 4 Failed 1 | . 1 . Catastrophic . | . . . Database Lockouts . | . . . Manual 10 | . 10 . Terminals 11 | . 11 . Fabricators . | . . . Repair Stations . | . . . Recycling Units . | . . . Scanalyzers . | . . . Garrison Access . | . . . Terminal Hacks 7 | . 3 4 Record 4 | . . 4 Robot Analysis 2 | . 2 . Terminal Index 1 | . 1 . Fabricator Hacks . | . . . Repair Station Hacks . | . . . Recycling Unit Hacks . | . . . Scanalyzer . | . . . Garrison Access Hacks . | . . . Unauthorized Hacks 7 | . 7 . Terminals 7 | . 7 . Botnet 2 | . 2 . Skim 5 | . 5 . Fabricators . | . . . Repair Stations . | . . . Recycling Units . | . . . Scanalyzers . | . . . Garrison Access . | . . . Data Cores Recovered . | . . . Used . | . . . Hacking Detections 3 | . 3 . Full Trace Events . | . . . Feedback Events . | . . . Feedback Blocked . | . . . Robot Schematics Acquired . | . . . Robots Built . | . . . Authchips . | . . . Time . | . . . Total Robot Build Rating . | . . . Part Schematics Acquired . | . . . Parts Built . | . . . Authchips . | . . . Time . | . . . Total Part Build Rating . | . . . Parts Repaired . | . . . Time . | . . . Parts Recycled . | . . . Recycled Matter . | . . . Retrieved Matter . | . . . Retrieved Components . | . . . Parts Scanalyzed . | . . . Part Schematics Acquired . | . . . Parts Damaged . | . . . Bothacking | -11 -10 -10 ------------ Run | Yrd Mat Sub Used RIF Installer . | . . . Robots Hacked . | . . . Non-combat . | . . . Combat . | . . . Robot Hacks Applied . | . . . Relay Couplers Released . | . . . Fabnet Peak Effective % . | . . . Robots Rewired . | . . . Allies Hacked . | . . . Hacks Repelled . | . . . Allies | -11 -10 -10 -------- Run | Yrd Mat Sub Total Allies . | . . . Largest Group . | . . . Highest-Rated Group . | . . . Highest-Rated Ally . | . . . Total Orders . | . . . Ally Attacks . | . . . Total Damage . | . . . Kills . | . . . Allies Corrupted . | . . . Allies Melted . | . . . Intel | -11 -10 -10 ------- Run | Yrd Mat Sub Robot Analysis Total 2 | . 2 . Derelict Logs Recovered . | . . . Drone Launches . | . . . Drone Recoveries . | . . . Exploration | -11 -10 -10 ------------- Run | Yrd Mat Sub Turns Passed 2637 | 75 1003 1559 Spaces Moved 1450 | 41 538 871 Core 2 | 2 . . Treads 1448 | 39 538 871 Legs . | . . . Wheels . | . . . Hover . | . . . Flight . | . . . Fastest Speed 50 | 50 160 160 Average Speed 159 | 154 160 160 Slowest Speed 160 | 160 160 160 Overloaded Moves . | . . . Propulsion Burnouts . | . . . Robots Hopped . | . . . Cave-ins Triggered . | . . . Exploration Rate (%) 35 | 4 65 38 Regions Visited 2 Branch Regions 1 Pre-discovered Areas 1 | . . 1 Known Exits Taken 1 | . 1 . Unknown Exits Taken 1 | 1 . . Scrap Searched . | . . . Spaces Dug . | . . . Terrain Destroyed . | . . . Melee . | . . . Projectile . | . . . AOE . | . . . Terrain Rammed . | . . . Walls Destroyed . | . . . Machines Disabled . | . . . Actions | -11 -10 -10 --------- Run | Yrd Mat Sub Total 1649 | 50 632 967 Wait 55 | . 11 44 Move 1448 | 40 537 871 Hop . | . . . Pick Up 27 | 2 22 3 Fast Attach 15 | 7 5 3 Attach 3 | . 1 2 Detach 3 | 1 2 . Swap 4 | . 4 . Drop 23 | . 16 7 Fire 71 | . 34 37 Melee . | . . . Ram . | . . . Kick . | . . . Crush . | . . . Escape Stasis . | . . . Rewire . | . . . Trap . | . . . Miscellaneous . | . . . Route ------- -11/Scrapyard -10/Materials (discovered 6 exits: *Mat x3 / *Min x2 / *Sub) -10/Subcaves (discovered 1 exit: [*Mat]) History --------- Turn | Location | Event 7 | -11/Scrapyard | Discovered new exit (range 14) 76 | -11/Scrapyard | Entered Materials 309 | -10/Materials | Build established: Mutant 476 | -10/Materials | Discovered new exit (range 15) 594 | -10/Materials | Discovered new exit (range 12) 908 | -10/Materials | Learned 4 Subcaves zone layouts 945 | -10/Materials | Identified exit to Materials 970 | -10/Materials | Learned location of 2 exits from Mines 989 | -10/Materials | Learned Storage emergency access door positions 990 | -10/Materials | Identified exit to Subcaves 995 | -10/Materials | Learned Recycling recycling unit intel 1012 | -10/Materials | Identified exit to Mines 1037 | -10/Materials | Learned Storage trap positions 1079 | -10/Materials | Entered Subcaves 1190 | -10/Subcaves | Learned location of Zion (-6) 1190 | -10/Subcaves | Met a Zionite searching for "candidates" 1198 | -10/Subcaves | Discovered new exit (range 10) 1225 | -10/Subcaves | Visited Clippyterm 1230 | -10/Subcaves | Learned Factory fabricator intel 1780 | -10/Subcaves | Core integrity fell below 50% 1823 | -10/Subcaves | Shifting Twisted Machinery released Flamer 1829 | -10/Subcaves | Shifting Twisted Machinery released Mak. Spear 2495 | -10/Subcaves | Core integrity fell below 20% 2638 | -10/Subcaves | Destroyed by 94-B0V(R) with Subdweller Laser Last Messages --------------- Acquired 8 matter. Dropped Med. Armor Plating. Acquired 10 matter. Triggered Shrapnel Trap. An expanding cloud of shrapnel blasts out in all directions. Triggered Piercing Trap. Spikes shoot up from the floor. Critical hit (Impale). Triggered Piercing Trap. Spikes shoot up from the floor. Critical hit (Impale). Triggered Piercing Trap. Spikes shoot up from the floor. Critical hit (Impale). Sub. Laser destroyed. Triggered Shrapnel Trap. An expanding cloud of shrapnel blasts out in all directions. Critical hit (Meltdown: +280). Map ----- +----------------------------------------------------+ | ?????????????????????????????????????????????????? | | ?????????????????????????????????????????????????? | | ?????????????????????????????????????????????????? | | ?????????????????????????????????????????????????? | | #######??????????????????????????????????????????? | | #"""""#??????????????????????????????????????????? | | #""X""#??????????????????????????????????????????? | | #" "#??????????????????????????????????????????? | | ### ###?????????????????????? ???????????????????? | | ### ####????????????????????? ???????????????????? | | ## ##???????????????????? ???????????????????? | | # #???????????????????? ???????????????????? | | #??????????????????? ???????????????????? | | #??????????????????? ???????????????????? | | # # #??????????????????? #????#####??????????? | | ###### #??????????????????? ##??# # ?????????? | | ?????## #??????????????????? ### ????????? | | ??????###??????????????????? ?????????? | | ???????????????????????????? ???????????? | | ??????????????????????????## ?????????????? | | ??????????????????????????# ???????????????? | | ?????????????????????????? ?????????????????? | | ??????????????????????????# #??????????????????? | | ????????????????????????##;RR #??????????????????? | | ????????????????????#####; #??????????????????? | | ???????????########## @ ####??????????????????? | | ???????????# ## #?????????????????????? | | ???????????# #?????????????????????? | | ??????????## #?????????????????????? | | ??????????# ## ##?????????????????????? | | ??????????# # ##??????????????????????? | | ??????????## # ####???????????????????????? | | ??????????## ## ##??????????????????????????? | | ??????????# ##### #???????????????????????????? | | ???????#### ##???####???????????????????????????? | | ???????# #???????????????????????????????????? | | ???????# ##??????????????????????????????????? | | ???????## #??????????????????????????????????? | | ????????# #??????????????????????????????????? | | ????????# #??????????????????????????????????? | | ???????## #??????????????????????????????????? | | ???????# #??????????????????????????????????? | | ??????## #??????????????????????????????????? | | ??????# #??????????????????????????????????? | | ??##### #??????????????????????????????????? | | ?## ####??????????????????????????????????? | | ## #?????????????????????????????????????? | | # ###### ##?????????????????????????????????????? | | #?#######?######??????????????????????????????? | | #?# ## ###""""#????#########?????????????????? | +----------------------------------------------------+ Best States ------------- Heat Dissipation 25 Energy Generation 10 Energy Capacity 250 Matter Stores 300 Matter Capacity 300 Sight Range 16 Robot Scan Range 14 Terrain Scan Density 10 Armor Coverage 225 Evasion (%) 40 Recoil Reduction 2 Item Schematics ----------------- None Robot Schematics ------------------ None Fabricated ------------ Nothing Alien Tech Used ----------------- None Achievements -------------- None Challenges ------------ None Game ------ Seed GuidedSwarmRay Manual? 0 Play Time 00:14:05 Cumulative 553.2 hours Start 2024.08.08 @ 21:10:01 End 2024.08.08 @ 21:22:42 Sessions 1 Manual Loads 0 Difficulty Rogue Special Mode None Game No. 295 Rogue 295 Adventurer 0 Explorer 0 Win Type - Total 36 Types 22/2/4/3/1/1/1/1/1 Lore% 90 Gallery% 96 Achievement% 98 Wizard Run 0 Options --------- Layout 1 ASCII 0 Keyboard 0 Movement Numpad Keybinds 0 Fullscreen 1 Font 24/Smallcaps Map View 50x35 Zoom Use 0% Tactical HUD 1 Map Filters NONE Filters NONE Steam 1 RUN: e6a3679d-5180-4fb5-bf3b-ef216bffc960